fUSD/lending_fUSD_20240327
["ID","MTS","AMOUNT","RATE_DAILY","PERIOD"]
[320798299,1711561883787,-1689.16,0.00054794,120]
[320798300,1711561883797,-500.0,0.00054794,120]
[320798301,1711561883807,-770.25,0.00054794,120]
[320798302,1711561883816,-500.0,0.00054794,120]
[320798303,1711561883827,-500.0,0.00054794,120]
[320798304,1711561883840,-500.0,0.00054794,120]
[320798305,1711561883851,-8380.88,0.00054794,120]
[320798306,1711561883862,-614.46,0.00054794,120]
[320798307,1711561883872,-500.0,0.00054794,120]
[320798308,1711561883882,-2989.36,0.00054794,120]
[320798309,1711561883895,-501.60815933,0.00054794,2]
[320798310,1711561883906,-10959.62,0.00054794,120]
[320798311,1711561883915,-521.47,0.00054794,120]
[320798312,1711561883926,-12744.26,0.00054794,120]
[320798313,1711561883936,-2645.1,0.00054794,120]
[320798314,1711561883947,-758.38,0.00054794,120]
[320798315,1711561883957,-500.0,0.00054794,120]
[320798316,1711561883967,-500.0,0.00054794,120]
[320798317,1711561883977,-500.0,0.00054794,120]
[320798318,1711561883987,-500.0,0.00054794,120]
[320798319,1711561883998,-500.0,0.00054794,120]
[320798320,1711561884008,-11517.5,0.00054794,120]
[320798321,1711561884018,-2628.59,0.00054794,120]
[320798322,1711561884028,-1981.45,0.00054794,120]
[320798323,1711561884038,-500.0,0.00054794,120]
[320798324,1711561884047,-500.0,0.00054794,2]
[320798325,1711561884056,-2618.9,0.00054794,120]
[320798326,1711561884066,-500.0,0.00054794,120]
[320798327,1711561884075,-500.0,0.00054794,120]
[320798328,1711561884086,-2635.65,0.00054794,120]
[320798329,1711561884097,-2440.72,0.00054794,120]
[320798330,1711561884107,-1641.2,0.00054794,120]
[320798331,1711561884117,-500.0,0.00054794,120]
[320798332,1711561884126,-1422.66,0.00054794,120]
[320798333,1711561884135,-1953.26,0.00054794,120]
[320798334,1711561884145,-500.0,0.00054794,120]
[320798335,1711561884154,-500.0,0.00054794,120]
[320798336,1711561884164,-680.59,0.00054794,120]
[320798337,1711561884172,-500.0,0.00054794,120]
[320798338,1711561884182,-851.11,0.00054794,120]
[320798339,1711561884192,-516.23,0.00054794,120]
[320798340,1711561884201,-833.36,0.00054794,120]
[320798341,1711561884210,-4524.02,0.00054794,120]
[320798342,1711561884219,-500.0,0.00054794,120]
[320798343,1711561884229,-2147.51,0.00054794,120]
[320798344,1711561884238,-500.0,0.00054794,120]
[320798345,1711561884247,-151.0,0.00054794,120]
[320798346,1711561884256,-500.0,0.00054794,120]
[320798347,1711561884266,-1826.97,0.00054794,120]
[320798348,1711561884276,-500.0,0.00054794,120]
[320798349,1711561884286,-1200.4,0.00054794,120]
[320798350,1711561884296,-500.0,0.00054794,120]
[320798351,1711561884312,-4994.03,0.00054794,120]
[320798352,1711561884321,-6977.94,0.00054794,120]
[320798353,1711561884331,-1042.58,0.00054794,120]
[320798354,1711561884341,-500.0,0.00054794,120]
[320798355,1711561884351,-500.0,0.00054794,120]
[320798356,1711561884361,-818.62,0.00054794,120]
[320798357,1711561884371,-1312.03,0.00054794,120]
[320798358,1711561884380,-265.45454471,0.00054794,120]
[320798359,1711561884390,-1814.79,0.00054794,120]
[320798360,1711561884400,-1730.09,0.00054794,120]
[320798361,1711561884409,-500.0,0.00054794,120]
[320798362,1711561884418,-3092.64,0.00054794,120]
[320798363,1711561884428,-500.0,0.00054794,120]
[320798364,1711561884438,-500.0,0.00054794,120]
[320798365,1711561884448,-858.06,0.00054794,120]
[320798366,1711561884457,-508.03,0.00054794,120]
[320798367,1711561884466,-3331.35,0.00054794,120]
[320798368,1711561884475,-500.0,0.00054794,120]
[320798369,1711561884484,-1629.06,0.00054794,120]
[320798370,1711561884494,-1107.56,0.00054794,120]
[320798371,1711561884503,-500.0,0.00054794,120]
[320798372,1711561884513,-426.94164846,0.00054794,120]
[320798373,1711561884523,-1926.96,0.00054794,120]
[320798374,1711561884532,-5998.21,0.00054794,120]
[320798375,1711561884542,-1276.61,0.00054794,120]
[320798376,1711561884551,-1204.74,0.00054794,120]
[320798377,1711561884562,-500.0,0.00054794,120]
[320798378,1711561884572,-978.47,0.00054794,120]
[320798379,1711561884583,-500.0,0.00054794,120]
[320798380,1711561884592,-500.0,0.00054794,120]
[320798381,1711561884602,-500.0,0.00054794,120]
[320798382,1711561884612,-500.0,0.00054794,120]
[320798383,1711561884621,-1112.11,0.00054794,120]
[320798384,1711561884631,-500.0,0.00054794,120]
[320798385,1711561884640,-158.036351,0.00054794,120]
[320798386,1711561884651,-5147.59,0.00054794,120]
[320798387,1711561884661,-500.0,0.00054794,120]
[320798388,1711561884671,-1278.89,0.00054794,120]
[320798389,1711561884680,-383.03787952,0.00054794,120]
[320798390,1711561884690,-1257.45,0.00054794,120]
[320798391,1711561884699,-500.0,0.00054794,120]
[320798392,1711561884709,-5642.74,0.00054794,120]
[320798393,1711561884718,-158.036351,0.00054794,120]
[320798394,1711561884728,-500.0,0.00054794,120]
[320798395,1711561884737,-679.21,0.00054794,120]
[320798396,1711561884746,-1894.45,0.00054794,120]
[320798397,1711561884756,-500.0,0.00054794,120]
[320798398,1711561884765,-200.0,0.00054795,120]
[320798399,1711561884775,-200.0,0.00054795,120]
[320798400,1711561884784,-200.0,0.00054795,120]
[320798401,1711561884794,-800.0,0.00054795,120]
[320798402,1711561884804,-800.0,0.00054795,120]
[320798403,1711561884814,-800.0,0.00054795,120]
[320798404,1711561884823,-200.0,0.00054795,120]
[320798405,1711561884832,-500.0,0.00054795,30]
[320798406,1711561884841,-500.0,0.00054795,30]
[320798407,1711561884852,-500.0,0.00054795,30]
[320798408,1711561884863,-200.0,0.00054795,30]
[320798409,1711561884872,-200.0,0.00054795,30]
[320798410,1711561884882,-200.0,0.00054795,30]
[320798411,1711561884893,-1000.0,0.00054795,120]
[320798412,1711561884905,-8126.456,0.00054795,120]
[320798413,1711561884914,-500.0,0.00054795,120]
[320798414,1711561884923,-500.0,0.00054795,120]
[320798415,1711561884932,-638.0,0.00054795,120]
[320798416,1711561884942,-1000.0,0.00054795,30]
[320798417,1711561884951,-175.5,0.00054795,2]
[320798418,1711561884961,-150.0,0.00054795,14]
[320798419,1711561884971,-152.22028874,0.00054797,60]
[320798420,1711561884981,-150.0,0.00054797,14]
[320798421,1711561884990,-2448.11516919,0.000548,120]
[320798422,1711561885000,-620.41818375,0.000548,120]
[320798423,1711561885009,-430.71326307,0.000548,30]
[320798424,1711561885019,-197.0,0.000548,30]
[320798425,1711561885029,-4055.22351412,0.000548,120]
[320798426,1711561885039,-150.0,0.000548,12]
[320798427,1711561885049,-150.0,0.000548,12]
[320798428,1711561885061,-150.0,0.000548,12]
[320798429,1711561885070,-150.0,0.000548,12]
[320798430,1711561885080,-3805.0,0.000548,120]
[320798431,1711561885089,-150.0,0.0005484,14]
[320798432,1711561885099,-150.0,0.0005484,14]
[320798433,1711561885108,-150.0,0.00054849,14]
[320798434,1711561885118,-150.0,0.00054854,14]
[320798435,1711561885127,-150.0,0.00054875,14]
[320798436,1711561885137,-150.0,0.00054878,14]
[320798437,1711561885146,-150.0,0.00054884,14]
[320798438,1711561885155,-150.0,0.00054887,14]
[320798439,1711561885165,-150.0,0.0005489,14]
[320798440,1711561885174,-935.98794494,0.000549,120]
[320798441,1711561885183,-394.41,0.000549,14]
[320798442,1711561885193,-150.0,0.0005491,14]
[320798443,1711561885202,-150.19866873,0.00054913,63]
[320798444,1711561885211,-150.0,0.00054923,14]
[320798445,1711561885221,-1286.76228,0.0005493,72]
[320798446,1711561885230,-150.0,0.00054934,14]
[320798447,1711561885241,-150.0,0.00054963,14]
[320798448,1711561885249,-167.0,0.00054965,2]
[320798449,1711561885322,-150.0,0.00054967,14]
[320798450,1711561885333,-455.80156122,0.00054968,2]
[320798451,1711561885341,-2155.64516919,0.00054968,120]
[320798452,1711561885350,-8635.99586063,0.00054968,2]
[320798453,1711561885359,-7703.93519299,0.00054968,30]
[320798454,1711561885368,-300.0,0.00054976,14]
[320798455,1711561885377,-207.0,0.0005498,15]
[320798456,1711561885386,-9417.89501353,0.00054981,32]
[320798457,1711561885396,-207.0,0.0005499,15]
[320798458,1711561885405,-1340.24599549,0.00055,120]
[320798459,1711561885414,-500.0,0.00055,30]
[320798460,1711561885423,-89259.9933216,0.00055,120]
[320798461,1711561885433,-1484.0,0.00055,30]
[320798462,1711561885442,-2000.0,0.00055,120]
[320798463,1711561885452,-1999.999999,0.00055,5]
[320798464,1711561885461,-647.61393163,0.00055,120]
[320798465,1711561885471,-43763.58355223,0.00055,30]
[320798466,1711561885480,-34306.88968509,0.00055,30]
[320798467,1711561885490,-15833.29561769,0.00055,14]
[320798468,1711561885500,-410.0,0.00055,120]
[320798469,1711561885509,-27394.72735261,0.00055,2]
[320798470,1711561885519,-3166.0,0.00055,120]
[320798471,1711561885529,-28478.66398709,0.00055,30]
[320798472,1711561885538,-5150.77433497,0.00055,120]
[320798473,1711561885548,-5000.0,0.00055,120]
[320798474,1711561885557,-150.0,0.00055,30]
[320798475,1711561885567,-600.0,0.00055,56]
[320798476,1711561885576,-642.4342954,0.00055,120]
[320798477,1711561885586,-460.07,0.00055,30]
[320798478,1711561885596,-151.0,0.00055,60]
[320798479,1711561885606,-151.0,0.00055,30]
[320798480,1711561885615,-151.0,0.00055,120]
[320798481,1711561885625,-204.288628,0.00055,120]
[320798482,1711561885635,-2937.172941,0.00055,96]
[320798483,1711561885644,-204.288628,0.00055,120]
[320798484,1711561885654,-191.520487,0.00055,120]
[320798485,1711561885664,-191.520487,0.00055,120]
[320798486,1711561885674,-250.635261,0.00055,120]
[320798487,1711561885684,-151.576563,0.00055,120]
[320798488,1711561885693,-250.635261,0.00055,120]
[320798489,1711561885702,-240.242065,0.00055,120]
[320798490,1711561885712,-151.576563,0.00055,120]
[320798491,1711561885722,-240.242065,0.00055,120]
[320798492,1711561885731,-151.0,0.00055,120]
[320798493,1711561885741,-342.284432,0.00055,120]
[320798494,1711561885750,-342.284432,0.00055,120]
[320798495,1711561885760,-700.0,0.00055,120]
[320798496,1711561885769,-48950.0,0.00055,120]
[320798497,1711561885778,-150.0,0.00055026,14]
[320798498,1711561885788,-152.91494694,0.00055059,120]
[320798499,1711561885797,-1000.0,0.00055067,90]
[320798500,1711561885807,-526.0,0.00055068,120]
[320798501,1711561885817,-500.0,0.00055068,120]
[320798502,1711561885826,-500.0,0.00055068,120]
[320798503,1711561885837,-500.0,0.00055068,120]
[320798504,1711561885847,-500.0,0.00055068,120]
[320798505,1711561885859,-500.0,0.00055068,120]
[320798506,1711561885869,-530.5,0.00055068,120]
[320798507,1711561885879,-500.0,0.00055068,120]
[320798508,1711561885892,-500.0,0.00055068,120]
[320798509,1711561885902,-500.0,0.00055068,120]
[320798510,1711561885911,-500.0,0.00055068,120]
[320798511,1711561885921,-500.0,0.00055068,120]
[320798512,1711561885931,-631.01,0.00055068,120]
[320798513,1711561885941,-500.0,0.00055068,120]
[320798514,1711561885950,-500.0,0.00055068,120]
[320798515,1711561885960,-500.0,0.00055068,120]
[320798516,1711561885970,-500.0,0.00055068,120]
[320798517,1711561885980,-500.0,0.00055068,120]
[320798518,1711561885990,-500.0,0.00055068,120]
[320798519,1711561885999,-500.0,0.00055068,120]
[320798520,1711561886008,-500.0,0.00055068,120]
[320798521,1711561886017,-500.0,0.00055068,120]
[320798522,1711561886026,-500.0,0.00055068,120]
[320798523,1711561886035,-500.0,0.00055068,120]
[320798524,1711561886045,-484.42076804,0.00055068,120]
[320798525,1711561886055,-500.0,0.00055068,120]
[320798526,1711561886065,-500.0,0.00055068,120]
[320798527,1711561886074,-530.38,0.00055068,120]
[320798528,1711561886084,-500.0,0.00055068,120]
[320798529,1711561886092,-500.0,0.00055068,120]
[320798530,1711561886101,-500.0,0.00055068,120]
[320798531,1711561886110,-500.0,0.00055068,120]
[320798532,1711561886119,-500.0,0.00055068,120]
[320798533,1711561886129,-500.0,0.00055068,120]
[320798534,1711561886138,-500.0,0.00055068,120]
[320798535,1711561886147,-500.0,0.00055068,120]
[320798536,1711561886157,-500.0,0.00055068,120]
[320798537,1711561886166,-500.0,0.00055068,120]
[320798538,1711561886175,-500.0,0.00055068,120]
[320798539,1711561886184,-517.87,0.00055068,120]
[320798540,1711561886194,-500.0,0.00055068,120]
[320798541,1711561886203,-151.0,0.00055068,60]
[320798542,1711561886213,-233.97103493,0.00055068,120]
[320798543,1711561886223,-500.0,0.00055068,120]
[320798544,1711561886232,-736.48,0.00055068,120]
[320798545,1711561886241,-500.0,0.00055068,120]
[320798546,1711561886250,-500.0,0.00055068,120]
[320798547,1711561886259,-500.0,0.00055068,120]
[320798548,1711561886269,-204.28,0.00055068,120]
[320798549,1711561886278,-500.0,0.00055068,120]
[320798550,1711561886288,-500.0,0.00055068,120]
[320798551,1711561886298,-500.0,0.00055068,120]
[320798552,1711561886309,-500.0,0.00055068,120]
[320798553,1711561886318,-500.0,0.00055068,120]
[320798554,1711561886328,-1149.15,0.00055068,120]
[320798555,1711561886338,-683.71,0.00055068,120]
[320798556,1711561886347,-500.0,0.00055068,120]
[320798557,1711561886357,-500.0,0.00055068,120]
[320798558,1711561886366,-588.63,0.00055068,120]
[320798559,1711561886376,-500.0,0.00055068,120]
[320798560,1711561886386,-1653.05,0.00055068,120]
[320798561,1711561886395,-721.85,0.00055068,120]
[320798562,1711561886404,-758.1,0.00055068,120]
[320798563,1711561886414,-751.34,0.00055068,120]
[320798564,1711561886424,-500.0,0.00055068,120]
[320798565,1711561886433,-500.0,0.00055068,120]
[320798566,1711561886442,-500.0,0.00055068,120]
[320798567,1711561886452,-500.0,0.00055068,120]
[320798568,1711561886461,-1106.66,0.00055068,120]
[320798569,1711561886470,-500.0,0.00055068,120]
[320798570,1711561886480,-667.72,0.00055068,120]
[320798571,1711561886489,-500.0,0.00055068,120]
[320798572,1711561886499,-546.53,0.00055068,120]
[320798573,1711561886508,-525.52,0.00055068,120]
[320798574,1711561886517,-151.0,0.00055068,30]
[320798575,1711561886527,-500.0,0.00055068,120]
[320798576,1711561886536,-500.0,0.00055068,120]
[320798577,1711561886545,-1650.28,0.00055068,120]
[320798578,1711561886554,-1208.64,0.00055068,120]
[320798579,1711561886564,-500.0,0.00055068,120]
[320798580,1711561886573,-500.0,0.00055068,120]
[320798581,1711561886582,-500.0,0.00055068,120]
[320798582,1711561886593,-500.0,0.00055068,120]
[320798583,1711561886602,-1675.07,0.00055068,120]
[320798584,1711561886612,-500.0,0.00055068,120]
[320798585,1711561886621,-500.0,0.00055068,120]
[320798586,1711561886630,-500.0,0.00055068,60]
[320798587,1711561886640,-875.05,0.00055068,120]
[320798588,1711561886649,-500.0,0.00055068,120]
[320798589,1711561886659,-500.0,0.00055068,120]
[320798590,1711561886668,-500.0,0.00055068,120]
[320798591,1711561886677,-500.0,0.00055068,120]
[320798592,1711561886686,-500.0,0.00055068,120]
[320798593,1711561886695,-896.37,0.00055068,120]
[320798594,1711561886705,-500.0,0.00055068,120]
[320798595,1711561886714,-526.04,0.00055068,120]
[320798596,1711561886724,-774.53,0.00055068,120]
[320798597,1711561886734,-623.96,0.00055068,120]
[320798598,1711561886744,-151.0,0.00055068,120]
[320798599,1711561886754,-500.0,0.00055068,120]
[320798600,1711561886765,-1500.57,0.00055068,120]
[320798601,1711561886775,-500.0,0.00055068,120]
[320798602,1711561886785,-252.0,0.00055068,120]
[320798603,1711561886795,-500.0,0.00055068,120]
[320798604,1711561886804,-1293.46,0.00055068,120]
[320798605,1711561886815,-663.1,0.00055068,120]
[320798606,1711561886824,-500.0,0.00055068,120]
[320798607,1711561886837,-500.0,0.00055068,120]
[320798608,1711561886847,-500.0,0.00055068,120]
[320798609,1711561886861,-591.57,0.00055068,120]
[320798610,1711561886872,-540.2,0.00055068,120]
[320798611,1711561886883,-500.0,0.00055068,120]
[320798612,1711561886895,-500.0,0.00055068,120]
[320798613,1711561886906,-500.0,0.00055068,120]
[320798614,1711561886918,-826.04,0.00055068,120]
[320798615,1711561886928,-802.7,0.00055068,120]
[320798616,1711561886941,-500.0,0.00055068,120]
[320798617,1711561886952,-500.0,0.00055068,120]
[320798618,1711561886963,-792.47,0.00055068,120]
[320798619,1711561886973,-551.8,0.00055068,120]
[320798620,1711561886983,-500.0,0.00055068,120]
[320798621,1711561886993,-507.03,0.00055068,120]
[320798622,1711561887002,-814.62,0.00055068,120]
[320798623,1711561887012,-500.0,0.00055068,120]
[320798624,1711561887023,-500.0,0.00055068,120]
[320798625,1711561887032,-500.0,0.00055068,120]
[320798626,1711561887041,-519.12,0.00055068,120]
[320798627,1711561887051,-500.0,0.00055068,120]
[320798628,1711561887060,-500.0,0.00055068,120]
[320798629,1711561887069,-500.0,0.00055068,120]
[320798630,1711561887078,-500.0,0.00055068,120]
[320798631,1711561887092,-553.94,0.00055068,120]
[320798632,1711561887101,-1363.26,0.00055068,120]
[320798633,1711561887110,-1247.0,0.00055068,120]
[320798634,1711561887119,-681.15,0.00055068,120]
[320798635,1711561887128,-828.0,0.00055068,120]
[320798636,1711561887138,-500.0,0.00055068,120]
[320798637,1711561887148,-907.95,0.00055068,120]
[320798638,1711561887157,-691.03,0.00055068,120]
[320798639,1711561887167,-500.0,0.00055068,120]
[320798640,1711561887177,-500.0,0.00055068,120]
[320798641,1711561887187,-500.0,0.00055068,120]
[320798642,1711561887196,-500.0,0.00055068,120]
[320798643,1711561887206,-1943.45,0.00055068,120]
[320798644,1711561887216,-1363.72,0.00055068,120]
[320798645,1711561887225,-204.288628,0.00055068,120]
[320798646,1711561887235,-500.0,0.00055068,120]
[320798647,1711561887244,-500.0,0.00055068,120]
[320798648,1711561887254,-204.288628,0.00055068,120]
[320798649,1711561887264,-500.0,0.00055068,120]
[320798650,1711561887276,-1264.66,0.00055068,120]
[320798651,1711561887286,-500.0,0.00055068,120]
[320798652,1711561887296,-518.11,0.00055068,120]
[320798653,1711561887306,-540.27524384,0.00055068,120]
[320798654,1711561887315,-500.0,0.00055068,120]
[320798655,1711561887325,-191.520487,0.00055068,120]
[320798656,1711561887338,-785.6,0.00055068,120]
[320798657,1711561887348,-500.0,0.00055068,120]
[320798658,1711561887358,-500.0,0.00055068,120]
[320798659,1711561887368,-500.0,0.00055068,120]
[320798660,1711561887378,-533.96,0.00055068,120]
[320798661,1711561887388,-191.520487,0.00055068,120]
[320798662,1711561887398,-610.76,0.00055068,120]
[320798663,1711561887409,-500.0,0.00055068,120]
[320798664,1711561887418,-500.0,0.00055068,120]
[320798665,1711561887429,-500.0,0.00055068,120]
[320798666,1711561887440,-250.635261,0.00055068,120]
[320798667,1711561887450,-358.93893686,0.00055068,120]
[320798668,1711561887461,-619.35,0.00055068,120]
[320798669,1711561887471,-601.27,0.00055068,120]
[320798670,1711561887481,-151.576563,0.00055068,120]
[320798671,1711561887491,-500.0,0.00055068,120]
[320798672,1711561887501,-500.0,0.00055068,120]
[320798673,1711561887511,-250.635261,0.00055068,120]
[320798674,1711561887522,-723.32,0.00055068,120]
[320798675,1711561887532,-240.242065,0.00055068,120]
[320798676,1711561887541,-151.576563,0.00055068,120]
[320798677,1711561887551,-658.94,0.00055068,30]
[320798678,1711561887560,-240.242065,0.00055068,120]
[320798679,1711561887570,-604.53,0.00055068,120]
[320798680,1711561887580,-151.0,0.00055068,120]
[320798681,1711561887591,-500.0,0.00055068,120]
[320798682,1711561887601,-627.6,0.00055068,120]
[320798683,1711561887610,-342.284432,0.00055068,120]
[320798684,1711561887620,-500.0,0.00055068,120]
[320798685,1711561887629,-342.284432,0.00055068,120]
[320798686,1711561887639,-541.49,0.00055068,120]
[320798687,1711561887648,-500.0,0.00055068,120]
[320798688,1711561887658,-525.41,0.00055068,120]
[320798689,1711561887668,-500.0,0.00055068,120]
[320798690,1711561887677,-1259.13,0.00055068,120]
[320798691,1711561887687,-500.0,0.00055068,120]
[320798692,1711561887697,-500.0,0.00055068,120]
[320798693,1711561887706,-500.0,0.00055068,120]
[320798694,1711561887716,-500.0,0.00055068,120]
[320798695,1711561887725,-500.0,0.00055068,120]
[320798696,1711561887735,-1285.86,0.00055068,120]
[320798697,1711561887744,-961.87,0.00055068,120]
[320798698,1711561887753,-1118.41,0.00055068,120]
[320798699,1711561887764,-500.0,0.00055068,120]
[320798700,1711561887774,-500.0,0.00055068,120]
[320798701,1711561887784,-653.33,0.00055068,120]
[320798702,1711561887794,-500.0,0.00055068,120]
[320798703,1711561887804,-500.0,0.00055068,120]
[320798704,1711561887814,-515.61,0.00055068,120]
[320798705,1711561887824,-500.0,0.00055068,120]
[320798706,1711561887836,-500.0,0.00055068,120]
[320798707,1711561887847,-500.0,0.00055068,120]
[320798708,1711561887857,-881.34,0.00055068,120]
[320798709,1711561887867,-594.96,0.00055068,120]
[320798710,1711561887877,-500.0,0.00055068,120]
[320798711,1711561887887,-500.0,0.00055068,120]
[320798712,1711561887899,-635.55,0.00055068,120]
[320798713,1711561887909,-500.0,0.00055068,120]
[320798714,1711561887919,-500.0,0.00055068,120]
[320798715,1711561887928,-500.0,0.00055068,120]
[320798716,1711561887939,-500.0,0.00055068,120]
[320798717,1711561887948,-569.07,0.00055068,120]
[320798718,1711561887957,-507.05,0.00055068,120]
[320798719,1711561887968,-513.81,0.00055068,120]
[320798720,1711561887979,-885.2,0.00055068,120]
[320798721,1711561887989,-500.0,0.00055068,120]
[320798722,1711561887999,-500.0,0.00055068,7]
[320798723,1711561888009,-500.0,0.00055068,120]
[320798724,1711561888020,-345.9,0.00055068,120]
[320798725,1711561888030,-500.0,0.00055068,120]
[320798726,1711561888040,-969.37,0.00055068,120]
[320798727,1711561888050,-500.0,0.00055068,120]
[320798728,1711561888060,-500.0,0.00055068,120]
[320798729,1711561888070,-500.0,0.00055068,120]
[320798730,1711561888080,-500.0,0.00055068,120]
[320798731,1711561888092,-500.0,0.00055068,120]
[320798732,1711561888101,-500.0,0.00055068,120]
[320798733,1711561888110,-712.96,0.00055068,120]
[320798734,1711561888120,-500.0,0.00055068,120]
[320798735,1711561888130,-500.0,0.00055068,120]
[320798736,1711561888139,-500.0,0.00055068,120]
[320798737,1711561888149,-500.0,0.00055068,120]
[320798738,1711561888159,-500.0,0.00055068,120]
[320798739,1711561888169,-607.67,0.00055068,120]
[320798740,1711561888179,-500.0,0.00055068,120]
[320798741,1711561888190,-500.0,0.00055068,120]
[320798742,1711561888199,-463.78197277,0.00055068,120]
[320798743,1711561888209,-500.0,0.00055068,120]
[320798744,1711561888219,-500.0,0.00055068,120]
[320798745,1711561888229,-572.09,0.00055068,120]
[320798746,1711561888240,-633.56,0.00055068,120]
[320798747,1711561888250,-500.0,0.00055068,120]
[320798748,1711561888260,-1276.08,0.00055068,120]
[320798749,1711561888270,-302.296389,0.00055068,120]
[320798750,1711561888280,-302.296389,0.00055068,120]
[320798751,1711561888291,-743.04,0.00055068,120]
[320798752,1711561888300,-500.0,0.00055068,120]
[320798753,1711561888311,-500.0,0.00055068,120]
[320798754,1711561888321,-994.38,0.00055068,120]
[320798755,1711561888331,-1464.37,0.00055068,120]
[320798756,1711561888344,-500.0,0.00055068,120]
[320798757,1711561888354,-151.0,0.00055068,120]
[320798758,1711561888364,-500.0,0.00055068,120]
[320798759,1711561888374,-1308.17,0.00055068,120]
[320798760,1711561888384,-500.0,0.00055068,120]
[320798761,1711561888394,-500.0,0.00055068,120]
[320798762,1711561888404,-500.0,0.00055068,120]
[320798763,1711561888413,-1966.83,0.00055068,120]
[320798764,1711561888423,-882.23,0.00055068,120]
[320798765,1711561888433,-1167.58,0.00055068,120]
[320798766,1711561888443,-500.0,0.00055068,120]
[320798767,1711561888452,-939.99,0.00055068,120]
[320798768,1711561888462,-1680.42,0.00055068,120]
[320798769,1711561888472,-500.0,0.00055068,120]
[320798770,1711561888481,-349.07,0.00055068,120]
[320798771,1711561888491,-654.45,0.00055068,120]
[320798772,1711561888501,-1090.78,0.00055068,120]
[320798773,1711561888511,-500.0,0.00055068,120]
[320798774,1711561888521,-500.0,0.00055068,120]
[320798775,1711561888532,-5693.99,0.00055068,120]
[320798776,1711561888541,-2767.8,0.00055068,120]
[320798777,1711561888551,-631.11,0.00055068,120]
[320798778,1711561888560,-151.0,0.00055068,120]
[320798779,1711561888570,-500.0,0.00055068,120]
[320798780,1711561888579,-638.94,0.00055068,120]
[320798781,1711561888591,-500.0,0.00055068,120]
[320798782,1711561888600,-3576.66,0.00055068,120]
[320798783,1711561888610,-1880.06,0.00055068,120]
[320798784,1711561888619,-597.69,0.00055068,120]
[320798785,1711561888629,-1154.81,0.00055068,120]
[320798786,1711561888639,-11680.99,0.00055068,120]
[320798787,1711561888649,-500.0,0.00055068,120]
[320798788,1711561888659,-500.0,0.00055068,120]
[320798789,1711561888669,-1513.74,0.00055068,120]
[320798790,1711561888679,-500.0,0.00055068,120]
[320798791,1711561888689,-4891.01,0.00055068,120]
[320798792,1711561888700,-500.0,0.00055068,120]
[320798793,1711561888710,-820.32,0.00055068,120]
[320798794,1711561888720,-2266.19,0.00055068,120]
[320798795,1711561888730,-4319.88,0.00055068,120]
[320798796,1711561888740,-638.01,0.00055068,120]
[320798797,1711561888751,-500.0,0.00055068,120]
[320798798,1711561888761,-500.0,0.00055068,120]